[Event "Late-Titled-Tuesday-Blitz-October-10-2023"]
[Site "Chess.com"]
[Date "2023.10.10"]
[Round "3"]
[White "GM_dmitrij"]
[Black "Rodalquilar"]
[Result "1-0"]
[WhiteElo "3025"]
[BlackElo "2749"]
[TimeControl "180+1"]
[EndTime "14:28:04 PDT"]
[Termination "GM_dmitrij won by resignation"]

1. e4 {[%clk 0:02:54.8]} 1... d5 {[%clk 0:03:00.1]} 2. exd5 {[%clk 0:02:53.2]}
2... Qxd5 {[%clk 0:03:01]} 3. Nf3 {[%clk 0:02:53.1]} 3... Bg4 {[%clk 0:03:00.6]}
4. Be2 {[%clk 0:02:53.6]} 4... Nc6 {[%clk 0:03:01.1]} 5. h3 {[%clk 0:02:51.9]}
5... Bxf3 {[%clk 0:03:00.9]} 6. Bxf3 {[%clk 0:02:52.8]} 6... Qe6+ {[%clk
0:03:01.4]} 7. Qe2 {[%clk 0:02:52.5]} 7... Qxe2+ {[%clk 0:03:01.6]} 8. Bxe2
{[%clk 0:02:53.4]} 8... O-O-O {[%clk 0:03:02.1]} 9. d3 {[%clk 0:02:49.5]} 9...
e5 {[%clk 0:03:02.4]} 10. c3 {[%clk 0:02:39.4]} 10... f5 {[%clk 0:03:02.5]} 11.
Nd2 {[%clk 0:02:33.6]} 11... g6 {[%clk 0:03:02.9]} 12. Nc4 {[%clk 0:02:32.2]}
12... Bg7 {[%clk 0:03:03]} 13. a4 {[%clk 0:02:24.6]} 13... Nf6 {[%clk
0:02:53.1]} 14. O-O {[%clk 0:02:15.9]} 14... Rhe8 {[%clk 0:02:51.3]} 15. Be3
{[%clk 0:02:06.8]} 15... Nd5 {[%clk 0:02:50.8]} 16. Bg5 {[%clk 0:02:06.7]} 16...
Bf6 {[%clk 0:02:50.4]} 17. Bd2 {[%clk 0:02:06.9]} 17... h5 {[%clk 0:02:16.5]}
18. Rfe1 {[%clk 0:02:04.7]} 18... h4 {[%clk 0:02:16.6]} 19. Rad1 {[%clk
0:01:59.6]} 19... Rd7 {[%clk 0:01:28.6]} 20. b4 {[%clk 0:01:37.9]} 20... Nb6
{[%clk 0:00:56.7]} 21. b5 {[%clk 0:01:29.4]} 21... Ne7 {[%clk 0:00:56.9]} 22.
Nb2 {[%clk 0:01:03.4]} 22... Red8 {[%clk 0:00:50.4]} 23. a5 {[%clk 0:00:55.8]}
23... Nbd5 {[%clk 0:00:50.9]} 24. Na4 {[%clk 0:00:37.3]} 24... b6 {[%clk
0:00:47.1]} 25. axb6 {[%clk 0:00:37.3]} 25... cxb6 {[%clk 0:00:45.6]} 26. Bf3
{[%clk 0:00:33.4]} 26... Rc7 {[%clk 0:00:40.5]} 27. c4 {[%clk 0:00:33]} 27...
Nf4 {[%clk 0:00:38.9]} 28. Bxf4 {[%clk 0:00:30.6]} 28... exf4 {[%clk 0:00:39.8]}
29. Re6 {[%clk 0:00:30.9]} 29... Bd4 {[%clk 0:00:33.8]} 30. Rde1 {[%clk
0:00:31.2]} 30... Rdd7 {[%clk 0:00:28.6]} 31. Kf1 {[%clk 0:00:25.2]} 31... Bc5
{[%clk 0:00:20.3]} 32. Nxc5 {[%clk 0:00:20.1]} 32... bxc5 {[%clk 0:00:21.2]} 33.
R1e5 {[%clk 0:00:17.6]} 33... Kd8 {[%clk 0:00:13.9]} 34. Ke2 {[%clk 0:00:17.8]}
34... Rd4 {[%clk 0:00:10.8]} 35. Bc6 {[%clk 0:00:15]} 35... a6 {[%clk
0:00:04.6]} 36. Rxc5 {[%clk 0:00:12.6]} 36... axb5 {[%clk 0:00:05.2]} 37. cxb5
{[%clk 0:00:13.5]} 37... Nxc6 {[%clk 0:00:05.1]} 38. bxc6 {[%clk 0:00:12.1]}
38... g5 {[%clk 0:00:03.5]} 39. Rg6 {[%clk 0:00:11.1]} 39... Re7+ {[%clk
0:00:03.8]} 40. Kd2 {[%clk 0:00:11.7]} 40... f3 {[%clk 0:00:01.5]} 41. gxf3
{[%clk 0:00:10.8]} 41... Kc7 {[%clk 0:00:01.1]} 42. Rxg5 {[%clk 0:00:10.5]}
42... Rf4 {[%clk 0:00:01.4]} 43. Rgxf5 {[%clk 0:00:10.7]} 43... Ra4 {[%clk
0:00:02.3]} 44. Ra5 {[%clk 0:00:09.9]} 44... Rb4 {[%clk 0:00:02.1]} 45. Rfc5
{[%clk 0:00:09.1]} 45... Rb2+ {[%clk 0:00:02.1]} 46. Rc2 {[%clk 0:00:09.2]}
46... Re2+ {[%clk 0:00:02.4]} 47. Kxe2 {[%clk 0:00:09.2]} 47... Rxc2+ {[%clk
0:00:03.3]} 48. Ke3 {[%clk 0:00:10.1]} 48... Rxc6 {[%clk 0:00:03.1]} 49. Rh5
{[%clk 0:00:10.2]} 49... Rc1 {[%clk 0:00:03.6]} 50. Rxh4 {[%clk 0:00:10]} 50...
Re1+ {[%clk 0:00:04.5]} 51. Kd2 {[%clk 0:00:10.3]} 51... Re8 {[%clk 0:00:05.4]}
52. Re4 {[%clk 0:00:10]} 52... Rh8 {[%clk 0:00:04.8]} 53. h4 {[%clk 0:00:10.5]}
53... Rf8 {[%clk 0:00:05.7]} 54. Ke3 {[%clk 0:00:11.2]} 54... Kd6 {[%clk
0:00:06.3]} 55. d4 {[%clk 0:00:11.7]} 55... Kd5 {[%clk 0:00:06.6]} 56. Re5+
{[%clk 0:00:11.8]} 56... Kd6 {[%clk 0:00:07.1]} 57. h5 {[%clk 0:00:12.4]} 57...
Ra8 {[%clk 0:00:07.1]} 58. f4 {[%clk 0:00:13.1]} 58... Ra3+ {[%clk 0:00:07.2]}
59. Ke4 {[%clk 0:00:13.6]} 59... Ra2 {[%clk 0:00:08.1]} 60. f3 {[%clk
0:00:13.9]} 60... Rh2 {[%clk 0:00:08.2]} 61. Rg5 {[%clk 0:00:13.4]} 61... Rh1
{[%clk 0:00:07.7]} 62. d5 {[%clk 0:00:13.6]} 62... Kc5 {[%clk 0:00:07.6]} 63.
Ke5 {[%clk 0:00:13.6]} 63... Re1+ {[%clk 0:00:07.7]} 64. Kf6 {[%clk 0:00:13.9]}
64... Rf1 {[%clk 0:00:08.6]} 65. h6 {[%clk 0:00:13.6]} 65... Rh1 {[%clk
0:00:09]} 66. Kg7 {[%clk 0:00:13]} 66... Kd6 {[%clk 0:00:09.6]} 67. h7 {[%clk
0:00:13.1]} 1-0

[Event "Late-Titled-Tuesday-Blitz-October-10-2023"]
[Site "Chess.com"]
[Date "2023.10.10"]
[Round "3"]
[White "Elbebiber"]
[Black "emeli_chess"]
[Result "1/2-1/2"]
[WhiteElo "2149"]
[BlackElo "2398"]
[TimeControl "180+1"]
[EndTime "14:28:06 PDT"]
[Termination "Game drawn by repetition"]

1. d4 {[%clk 0:03:00.9]} 1... Nf6 {[%clk 0:02:59.7]} 2. Bg5 {[%clk 0:03:00]}
2... e6 {[%clk 0:02:59.1]} 3. Nf3 {[%clk 0:02:45.2]} 3... h6 {[%clk 0:02:57.1]}
4. Bh4 {[%clk 0:02:44.3]} 4... c5 {[%clk 0:02:55.7]} 5. e3 {[%clk 0:02:35.2]}
5... cxd4 {[%clk 0:02:54.8]} 6. exd4 {[%clk 0:02:34.5]} 6... Be7 {[%clk
0:02:53.6]} 7. c3 {[%clk 0:02:32.6]} 7... b6 {[%clk 0:02:50.7]} 8. Be2 {[%clk
0:02:30.3]} 8... Ba6 {[%clk 0:02:44.5]} 9. O-O {[%clk 0:02:27.6]} 9... Bxe2
{[%clk 0:02:43.3]} 10. Qxe2 {[%clk 0:02:28.5]} 10... d6 {[%clk 0:02:31.2]} 11.
Nbd2 {[%clk 0:02:25.7]} 11... Nbd7 {[%clk 0:02:23.5]} 12. Rfe1 {[%clk
0:02:24.7]} 12... O-O {[%clk 0:02:22.8]} 13. h3 {[%clk 0:02:14.7]} 13... a6
{[%clk 0:02:18.4]} 14. Bg3 {[%clk 0:02:11.5]} 14... b5 {[%clk 0:02:15]} 15. Ne4
{[%clk 0:02:07.9]} 15... Nxe4 {[%clk 0:02:13.9]} 16. Qxe4 {[%clk 0:02:08]} 16...
Nf6 {[%clk 0:02:13.5]} 17. Qd3 {[%clk 0:02:03.3]} 17... Nd5 {[%clk 0:02:12]} 18.
Nd2 {[%clk 0:01:54.3]} 18... Qb6 {[%clk 0:01:46.1]} 19. Rac1 {[%clk 0:01:40.2]}
19... Rac8 {[%clk 0:01:43.5]} 20. Ne4 {[%clk 0:01:35.1]} 20... Rfd8 {[%clk
0:01:31.7]} 21. Nd2 {[%clk 0:01:24]} 21... Bg5 {[%clk 0:01:23.7]} 22. Rcd1
{[%clk 0:01:21]} 22... Bxd2 {[%clk 0:01:21.6]} 23. Rxd2 {[%clk 0:01:19.1]} 23...
Qc6 {[%clk 0:01:20.8]} 24. a3 {[%clk 0:01:10.8]} 24... Qc4 {[%clk 0:01:16.7]}
25. Qe4 {[%clk 0:01:01.5]} 25... a5 {[%clk 0:01:16]} 26. Qe2 {[%clk 0:00:52.2]}
26... b4 {[%clk 0:01:07.7]} 27. Qxc4 {[%clk 0:00:46.8]} 27... Rxc4 {[%clk
0:01:07.1]} 28. cxb4 {[%clk 0:00:45.8]} 28... axb4 {[%clk 0:01:06.9]} 29. Ra1
{[%clk 0:00:36.8]} 29... b3 {[%clk 0:01:01.7]} 30. Rad1 {[%clk 0:00:33.1]} 30...
Kf8 {[%clk 0:00:56]} 31. Kf1 {[%clk 0:00:33.6]} 31... Ke7 {[%clk 0:00:55.9]} 32.
Rd3 {[%clk 0:00:34]} 32... Rb8 {[%clk 0:00:54.7]} 33. R1d2 {[%clk 0:00:30.9]}
33... f5 {[%clk 0:00:39.1]} 34. f3 {[%clk 0:00:23.1]} 34... g5 {[%clk
0:00:36.6]} 35. Ke2 {[%clk 0:00:14.2]} 35... Rc1 {[%clk 0:00:34.1]} 36. Rd1
{[%clk 0:00:12]} 36... Rc2+ {[%clk 0:00:26.4]} 37. R1d2 {[%clk 0:00:12.2]} 37...
Rc4 {[%clk 0:00:25.7]} 38. Rd1 {[%clk 0:00:11.9]} 38... Rb6 {[%clk 0:00:18.7]}
39. R1d2 {[%clk 0:00:12.2]} 39... f4 {[%clk 0:00:10.9]} 40. Bf2 {[%clk
0:00:12.1]} 40... Kd7 {[%clk 0:00:10.4]} 41. Rd1 {[%clk 0:00:12.4]} 41... Ne7
{[%clk 0:00:10]} 42. R1d2 {[%clk 0:00:12.9]} 42... Nf5 {[%clk 0:00:09.7]} 43. d5
{[%clk 0:00:11.9]} 43... Ra6 {[%clk 0:00:09]} 44. dxe6+ {[%clk 0:00:11.4]} 44...
Kxe6 {[%clk 0:00:09.3]} 45. Bd4 {[%clk 0:00:11.1]} 45... Nxd4+ {[%clk
0:00:08.7]} 46. Rxd4 {[%clk 0:00:11.4]} 46... Rxd4 {[%clk 0:00:07.8]} 47. Rxd4
{[%clk 0:00:11.5]} 47... Rc6 {[%clk 0:00:08.4]} 48. Rd2 {[%clk 0:00:10.4]} 48...
d5 {[%clk 0:00:08.1]} 49. Kd3 {[%clk 0:00:10.9]} 49... Kd6 {[%clk 0:00:07.9]}
50. Kd4 {[%clk 0:00:10.8]} 50... Rc4+ {[%clk 0:00:07.8]} 51. Kd3 {[%clk
0:00:11]} 51... Kc5 {[%clk 0:00:08.1]} 52. Re2 {[%clk 0:00:11.5]} 52... Rc1
{[%clk 0:00:06.3]} 53. Rd2 {[%clk 0:00:11.4]} 53... Rf1 {[%clk 0:00:05.7]} 54.
Re2 {[%clk 0:00:11.3]} 54... Rd1+ {[%clk 0:00:05.3]} 55. Kc3 {[%clk 0:00:11.5]}
55... d4+ {[%clk 0:00:04.8]} 56. Kxb3 {[%clk 0:00:11.2]} 56... Rd3+ {[%clk
0:00:05.1]} 57. Kc2 {[%clk 0:00:11]} 57... Kc4 {[%clk 0:00:04.6]} 58. Rd2 {[%clk
0:00:10.4]} 58... Re3 {[%clk 0:00:04.3]} 59. Kd1 {[%clk 0:00:10]} 59... Rb3
{[%clk 0:00:03.1]} 60. Kc2 {[%clk 0:00:09.2]} 60... Re3 {[%clk 0:00:02.8]} 61.
Kd1 {[%clk 0:00:09.3]} 61... Rb3 {[%clk 0:00:02.9]} 62. Kc2 {[%clk 0:00:08.8]}
62... Re3 {[%clk 0:00:03]} 1/2-1/2

[Event "Late-Titled-Tuesday-Blitz-October-10-2023"]
[Site "Chess.com"]
[Date "2023.10.10"]
[Round "3"]
[White "PawnEatingZombie"]
[Black "Vegan4future"]
[Result "0-1"]
[WhiteElo "2190"]
[BlackElo "2411"]
[TimeControl "180+1"]
[EndTime "14:28:18 PDT"]
[Termination "Vegan4future won on time"]

1. e4 {[%clk 0:02:56.9]} 1... e5 {[%clk 0:02:56.5]} 2. Nf3 {[%clk 0:02:55.9]}
2... Nc6 {[%clk 0:02:54.7]} 3. Bb5 {[%clk 0:02:55.4]} 3... a6 {[%clk 0:02:52.2]}
4. Ba4 {[%clk 0:02:54.8]} 4... Nf6 {[%clk 0:02:52.7]} 5. d3 {[%clk 0:02:55.3]}
5... Bc5 {[%clk 0:02:52.9]} 6. O-O {[%clk 0:02:52.3]} 6... d6 {[%clk 0:02:53]}
7. c3 {[%clk 0:02:52.3]} 7... O-O {[%clk 0:02:53.3]} 8. Nbd2 {[%clk 0:02:49.9]}
8... Ba7 {[%clk 0:02:53.6]} 9. h3 {[%clk 0:02:43.4]} 9... h6 {[%clk 0:02:53.8]}
10. Re1 {[%clk 0:02:42.4]} 10... Ne7 {[%clk 0:02:54.2]} 11. Nf1 {[%clk
0:02:40.2]} 11... Ng6 {[%clk 0:02:54.1]} 12. Be3 {[%clk 0:02:34.6]} 12... Qe7
{[%clk 0:02:50.1]} 13. Bc2 {[%clk 0:02:30.7]} 13... Nh5 {[%clk 0:02:46]} 14.
Bxa7 {[%clk 0:02:11.7]} 14... Rxa7 {[%clk 0:02:45.4]} 15. d4 {[%clk 0:01:50]}
15... Nhf4 {[%clk 0:02:34]} 16. Ng3 {[%clk 0:01:41]} 16... Nh4 {[%clk
0:02:17.2]} 17. Nxh4 {[%clk 0:01:26.9]} 17... Qxh4 {[%clk 0:02:18.1]} 18. Qf3
{[%clk 0:01:10.8]} 18... Qf6 {[%clk 0:02:02.5]} 19. Kh2 {[%clk 0:01:04.1]} 19...
Ra8 {[%clk 0:01:54.7]} 20. Rad1 {[%clk 0:01:03.7]} 20... Be6 {[%clk 0:01:51.6]}
21. a3 {[%clk 0:00:54.3]} 21... Rae8 {[%clk 0:01:26.1]} 22. Rd2 {[%clk
0:00:52.1]} 22... Bc8 {[%clk 0:01:12.6]} 23. Red1 {[%clk 0:00:51.9]} 23... exd4
{[%clk 0:01:09.6]} 24. cxd4 {[%clk 0:00:51.2]} 24... Qg5 {[%clk 0:01:07.4]} 25.
Bb3 {[%clk 0:00:35.9]} 25... Be6 {[%clk 0:01:05.2]} 26. Bxe6 {[%clk 0:00:29.5]}
26... fxe6 {[%clk 0:01:06.1]} 27. Qg4 {[%clk 0:00:20.6]} 27... Qxg4 {[%clk
0:01:05.7]} 28. hxg4 {[%clk 0:00:21.5]} 28... Ng6 {[%clk 0:01:04.3]} 29. f3
{[%clk 0:00:19.9]} 29... e5 {[%clk 0:01:00.6]} 30. d5 {[%clk 0:00:19.8]} 30...
Nf4 {[%clk 0:00:55.2]} 31. Rc2 {[%clk 0:00:19.6]} 31... Re7 {[%clk 0:00:52.3]}
32. Nf5 {[%clk 0:00:20.1]} 32... Rd7 {[%clk 0:00:51.8]} 33. Rdc1 {[%clk
0:00:17.4]} 33... Rff7 {[%clk 0:00:43.8]} 34. g3 {[%clk 0:00:15.2]} 34... Nd3
{[%clk 0:00:43.5]} 35. Rd1 {[%clk 0:00:14.3]} 35... Nc5 {[%clk 0:00:42.6]} 36.
b4 {[%clk 0:00:13.2]} 36... Na4 {[%clk 0:00:41.8]} 37. Rdc1 {[%clk 0:00:12]}
37... Nb6 {[%clk 0:00:41.5]} 38. Kg2 {[%clk 0:00:11.3]} 38... Kh7 {[%clk
0:00:41.5]} 39. Kf2 {[%clk 0:00:11.4]} 39... g6 {[%clk 0:00:41.9]} 40. Ne3
{[%clk 0:00:11.4]} 40... Kg7 {[%clk 0:00:41.9]} 41. Ke2 {[%clk 0:00:11.7]} 41...
Nc8 {[%clk 0:00:40.6]} 42. Nc4 {[%clk 0:00:11.3]} 42... b6 {[%clk 0:00:37.5]}
43. Ne3 {[%clk 0:00:10.5]} 43... Na7 {[%clk 0:00:37.2]} 44. a4 {[%clk
0:00:09.2]} 44... Kf8 {[%clk 0:00:31.1]} 45. Kd3 {[%clk 0:00:09.1]} 45... Ke8
{[%clk 0:00:31]} 46. Ke2 {[%clk 0:00:09]} 46... Kd8 {[%clk 0:00:31.4]} 47. Rh1
{[%clk 0:00:07.4]} 47... Rh7 {[%clk 0:00:31.2]} 48. Kd3 {[%clk 0:00:07]} 48...
b5 {[%clk 0:00:26.4]} 49. a5 {[%clk 0:00:06.4]} 49... Rdf7 {[%clk 0:00:22.5]}
50. Rf2 {[%clk 0:00:06.5]} 50... Nc8 {[%clk 0:00:22.1]} 51. Ke2 {[%clk
0:00:06.9]} 51... Ne7 {[%clk 0:00:22.4]} 52. Rfh2 {[%clk 0:00:07.5]} 52... Ng8
{[%clk 0:00:22.1]} 53. g5 {[%clk 0:00:06.6]} 53... h5 {[%clk 0:00:22]} 54. Ng4
{[%clk 0:00:06.9]} 54... hxg4 {[%clk 0:00:19.9]} 55. Rxh7 {[%clk 0:00:06.3]}
55... Rxf3 {[%clk 0:00:17.8]} 56. Rh8 {[%clk 0:00:04.1]} 56... Rf8 {[%clk
0:00:17.7]} 57. R1h7 {[%clk 0:00:02.2]} 57... Ke8 {[%clk 0:00:17.6]} 58. Rg7
{[%clk 0:00:02.5]} 58... Ne7 {[%clk 0:00:17.6]} 59. Rxf8+ {[%clk 0:00:03.4]}
59... Kxf8 {[%clk 0:00:18.5]} 60. Rh7 {[%clk 0:00:03.2]} 60... Kg8 {[%clk
0:00:18.4]} 61. Rh6 {[%clk 0:00:03.4]} 61... Kg7 {[%clk 0:00:18]} 62. Rh4 {[%clk
0:00:03.3]} 62... c5 {[%clk 0:00:18]} 63. Rxg4 {[%clk 0:00:03.6]} 63... cxb4
{[%clk 0:00:17.5]} 64. Kd3 {[%clk 0:00:04]} 64... Kf7 {[%clk 0:00:11.7]} 65. Rh4
{[%clk 0:00:04.2]} 65... Kg7 {[%clk 0:00:11.4]} 66. Rh1 {[%clk 0:00:04.1]} 66...
Nc8 {[%clk 0:00:07.8]} 67. Rc1 {[%clk 0:00:04.5]} 67... Ne7 {[%clk 0:00:07.8]}
68. Rc7 {[%clk 0:00:04.2]} 68... Kf8 {[%clk 0:00:08.7]} 69. Kc2 {[%clk
0:00:03.5]} 69... Ke8 {[%clk 0:00:08.3]} 70. Kb3 {[%clk 0:00:03.5]} 70... Kd8
{[%clk 0:00:09.2]} 71. Ra7 {[%clk 0:00:03.2]} 71... Nc8 {[%clk 0:00:09.1]} 72.
Rg7 {[%clk 0:00:02.5]} 72... Ne7 {[%clk 0:00:09]} 73. Kxb4 {[%clk 0:00:01.1]}
73... Ke8 {[%clk 0:00:09.9]} 0-1

[Event "Late-Titled-Tuesday-Blitz-October-10-2023"]
[Site "Chess.com"]
[Date "2023.10.10"]
[Round "3"]
[White "mbojan"]
[Black "Firouzja2003"]
[Result "1-0"]
[WhiteElo "2784"]
[BlackElo "3054"]
[TimeControl "180+1"]
[EndTime "14:28:22 PDT"]
[Termination "mbojan won on time"]

1. Nf3 {[%clk 0:02:56.6]} 1... Nf6 {[%clk 0:02:56.1]} 2. e3 {[%clk 0:02:55.3]}
2... g6 {[%clk 0:02:55.9]} 3. b3 {[%clk 0:02:54.7]} 3... Bg7 {[%clk 0:02:56.4]}
4. Bb2 {[%clk 0:02:54.4]} 4... O-O {[%clk 0:02:56.3]} 5. Be2 {[%clk 0:02:54]}
5... d6 {[%clk 0:02:56.7]} 6. d4 {[%clk 0:02:53.1]} 6... Nbd7 {[%clk 0:02:57]}
7. O-O {[%clk 0:02:52.6]} 7... Re8 {[%clk 0:02:55.9]} 8. c4 {[%clk 0:02:51.9]}
8... c6 {[%clk 0:02:52.1]} 9. Nc3 {[%clk 0:02:48.5]} 9... e5 {[%clk 0:02:50.7]}
10. Qc2 {[%clk 0:02:43.4]} 10... Qe7 {[%clk 0:02:44.4]} 11. b4 {[%clk
0:02:29.4]} 11... e4 {[%clk 0:02:43.4]} 12. Nd2 {[%clk 0:02:28.6]} 12... Nf8
{[%clk 0:02:44]} 13. b5 {[%clk 0:02:25.5]} 13... Bf5 {[%clk 0:02:40.6]} 14. bxc6
{[%clk 0:02:19.5]} 14... bxc6 {[%clk 0:02:41.5]} 15. Rfb1 {[%clk 0:02:17]} 15...
h5 {[%clk 0:02:40.2]} 16. Ba3 {[%clk 0:02:12.3]} 16... Ne6 {[%clk 0:02:28.4]}
17. Qa4 {[%clk 0:02:11]} 17... Nxd4 {[%clk 0:02:19.4]} 18. exd4 {[%clk
0:01:41.3]} 18... e3 {[%clk 0:02:19.2]} 19. Nf1 {[%clk 0:01:38.2]} 19... exf2+
{[%clk 0:02:13.5]} 20. Kh1 {[%clk 0:01:36.2]} 20... Bxb1 {[%clk 0:02:09]} 21.
Rxb1 {[%clk 0:01:37.1]} 21... Ne4 {[%clk 0:02:08.2]} 22. Nd1 {[%clk 0:01:08.9]}
22... Nd2 {[%clk 0:02:03.1]} 23. Bd3 {[%clk 0:00:50.2]} 23... Nxb1 {[%clk
0:02:00.2]} 24. Bxb1 {[%clk 0:00:50.1]} 24... Qe1 {[%clk 0:02:00.4]} 25. Bd3
{[%clk 0:00:50.1]} 25... Bxd4 {[%clk 0:01:52.9]} 26. Qc2 {[%clk 0:00:49.7]}
26... c5 {[%clk 0:01:47]} 27. Bc1 {[%clk 0:00:46.8]} 27... Rab8 {[%clk
0:01:44.9]} 28. g3 {[%clk 0:00:45.1]} 28... h4 {[%clk 0:01:27.9]} 29. gxh4
{[%clk 0:00:38.8]} 29... Qe6 {[%clk 0:01:27.7]} 30. Nxf2 {[%clk 0:00:29.3]}
30... Qf6 {[%clk 0:01:23.3]} 31. Kg2 {[%clk 0:00:15]} 31... Re1 {[%clk
0:01:19.6]} 32. Ne4 {[%clk 0:00:09.1]} 32... Qxh4 {[%clk 0:01:12.2]} 33. Nfg3
{[%clk 0:00:04.6]} 33... Qg4 {[%clk 0:01:05]} 34. Nf2 {[%clk 0:00:03.6]} 34...
Bxf2 {[%clk 0:00:48.2]} 35. Kxf2 {[%clk 0:00:04.5]} 35... Rh1 {[%clk 0:00:48.2]}
36. Nxh1 {[%clk 0:00:03.9]} 36... Qh3 {[%clk 0:00:38.1]} 37. Kg1 {[%clk
0:00:03.8]} 37... Re8 {[%clk 0:00:37.8]} 38. Ng3 {[%clk 0:00:04.1]} 38... Re1+
{[%clk 0:00:36.4]} 39. Kf2 {[%clk 0:00:04.7]} 39... Re6 {[%clk 0:00:36.7]} 40.
Kg1 {[%clk 0:00:05.3]} 40... Qg4 {[%clk 0:00:36.4]} 41. Kg2 {[%clk 0:00:05.2]}
41... Re1 {[%clk 0:00:31.5]} 42. Bd2 {[%clk 0:00:04.5]} 42... Re6 {[%clk
0:00:27.2]} 43. Qb2 {[%clk 0:00:04.5]} 43... Re8 {[%clk 0:00:26]} 44. Qc1 {[%clk
0:00:03.8]} 44... Qd4 {[%clk 0:00:25.7]} 45. Qf1 {[%clk 0:00:04.3]} 45... Qb2
{[%clk 0:00:23.5]} 46. Qf2 {[%clk 0:00:04.5]} 46... f5 {[%clk 0:00:12.8]} 47.
Bf4 {[%clk 0:00:04.1]} 47... Qc3 {[%clk 0:00:12.7]} 48. Be2 {[%clk 0:00:03.2]}
48... Re6 {[%clk 0:00:10.3]} 49. h4 {[%clk 0:00:03.4]} 49... Qf6 {[%clk
0:00:08.7]} 50. Bg5 {[%clk 0:00:02]} 50... Qe5 {[%clk 0:00:08]} 51. Bf4 {[%clk
0:00:02.9]} 51... Qf6 {[%clk 0:00:08.3]} 52. Bg5 {[%clk 0:00:03.6]} 52... Qc3
{[%clk 0:00:07.3]} 53. h5 {[%clk 0:00:04.1]} 53... Qe5 {[%clk 0:00:05.2]} 54.
Bf4 {[%clk 0:00:04.2]} 54... Qf6 {[%clk 0:00:05.6]} 55. hxg6 {[%clk 0:00:04.3]}
55... Qxg6 {[%clk 0:00:06.5]} 56. Qf3 {[%clk 0:00:04.5]} 56... Kf8 {[%clk
0:00:05.6]} 57. Bd3 {[%clk 0:00:05]} 57... Qf6 {[%clk 0:00:05.5]} 58. Qd5 {[%clk
0:00:05.2]} 58... Qb2+ {[%clk 0:00:05.5]} 59. Kh3 {[%clk 0:00:05.7]} 59... Qf6
{[%clk 0:00:03.9]} 60. Bxf5 {[%clk 0:00:05.5]} 60... Qh8+ {[%clk 0:00:04]} 61.
Kg4 {[%clk 0:00:05.6]} 61... Qg7+ {[%clk 0:00:04.2]} 62. Kf3 {[%clk 0:00:05.9]}
62... Qc3+ {[%clk 0:00:04]} 63. Kg4 {[%clk 0:00:06.4]} 63... Qg7+ {[%clk
0:00:04.3]} 64. Bg5 {[%clk 0:00:06.9]} 64... Re8 {[%clk 0:00:01.5]} 65. Qxd6+
{[%clk 0:00:07.1]} 65... Kg8 {[%clk 0:00:02.1]} 66. Qd5+ {[%clk 0:00:06.9]}
66... Kh8 {[%clk 0:00:02.1]} 67. Nh5 {[%clk 0:00:07.1]} 67... Qg8 {[%clk
0:00:01.2]} 68. Qxg8+ {[%clk 0:00:06.3]} 1-0